Workbook

Sheet Timesedel (hidden)
A1: BTK Transport
A2: Herringvej 25 4690 Haslev | K2: Timesedel for 2 uger
A7: Medarbejder: | I7: Telefonnummer, medarbejder:
A8: E-mail, medarbejder: | I8: Startdato: | L8: 2019-11-04
A9: Leder: | I9: Slutdato: | L9: =IF($L$8="","",$L$8+13) -> 2019-11-17
A12: Dag | B12: Dato | C12: Start KL | D12: Slut KL. | E12: ArbejdsTid | F12: Norm | G12: fra 1 til 5 overtime | H12: Fra 6 overtime | I12: 21 - 05 | J12: Syg | K12: Ferie/fridag/sh | L12: I alt
A13: =PROPER(TEXT(WEEKDAY(Table1[[#This Row],[Dato]],1),"DDDD")) -> Mandag | B13: =L8 -> 2019-11-04 | C13: 07:00:00 | D13: 15:00:00 | E13: =IF(OR(Table1[[#This Row],[Start KL]]="",Table1[[#This Row],[Slut KL.]]=""),"0:0",Table1[[#This Row],[Slut KL.]]-Table1[[#This Row],[Start KL]]+(Table1[[#This Row],[Start KL]]>D13)) -> 08:00:00 | L13: =IF(OR(Table1[[#This Row],[Start KL]]="",Table1[[#This Row],[Slut KL.]]=""),"",IF(SUM(F13:K13)>24,"Du har indtastet over 24 timer.",Table1[[#This Row],[ArbejdsTid]])) -> 0.3333333333
A14: =PROPER(TEXT(WEEKDAY(Table1[[#This Row],[Dato]],1),"DDDD")) -> Tirsdag | B14: =IF($L$8="","",$L$8+1) -> 2019-11-05 | C14: 06:00:00 | D14: 18:30:00 | E14: =IF(OR(Table1[[#This Row],[Start KL]]="",Table1[[#This Row],[Slut KL.]]=""),"0:0",Table1[[#This Row],[Slut KL.]]-Table1[[#This Row],[Start KL]]+(Table1[[#This Row],[Start KL]]>D14)) -> 12:30:00 | L14: =IF(OR(Table1[[#This Row],[Start KL]]="",Table1[[#This Row],[Slut KL.]]=""),"",IF(SUM(F14:K14)>24,"Du har indtastet over 24 timer.",Table1[[#This Row],[ArbejdsTid]])) -> 0.5208333333
A15: =PROPER(TEXT(WEEKDAY(Table1[[#This Row],[Dato]],1),"DDDD")) -> Onsdag | B15: =IF($L$8="","",$L$8+2) -> 2019-11-06 | C15: 06:00:00 | D15: 13:24:00 | E15: =IF(OR(Table1[[#This Row],[Start KL]]="",Table1[[#This Row],[Slut KL.]]=""),"0:0",Table1[[#This Row],[Slut KL.]]-Table1[[#This Row],[Start KL]]+(Table1[[#This Row],[Start KL]]>D15)) -> 07:24:00 | L15: =IF(OR(Table1[[#This Row],[Start KL]]="",Table1[[#This Row],[Slut KL.]]=""),"",IF(SUM(F15:K15)>24,"Du har indtastet over 24 timer.",Table1[[#This Row],[ArbejdsTid]])) -> 0.3083333333
A16: =PROPER(TEXT(WEEKDAY(Table1[[#This Row],[Dato]],1),"DDDD")) -> Torsdag | B16: =IF($L$8="","",$L$8+3) -> 2019-11-07 | C16: 06:00:00 | D16: 18:00:00 | E16: =IF(OR(Table1[[#This Row],[Start KL]]="",Table1[[#This Row],[Slut KL.]]=""),"0:0",Table1[[#This Row],[Slut KL.]]-Table1[[#This Row],[Start KL]]+(Table1[[#This Row],[Start KL]]>D16)) -> 12:00:00 | L16: =IF(OR(Table1[[#This Row],[Start KL]]="",Table1[[#This Row],[Slut KL.]]=""),"",IF(SUM(F16:K16)>24,"Du har indtastet over 24 timer.",Table1[[#This Row],[ArbejdsTid]])) -> 0.5
A17: =PROPER(TEXT(WEEKDAY(Table1[[#This Row],[Dato]],1),"DDDD")) -> Fredag | B17: =IF($L$8="","",$L$8+4) -> 2019-11-08 | C17: 06:00:00 | D17: 12:00:00 | E17: =IF(OR(Table1[[#This Row],[Start KL]]="",Table1[[#This Row],[Slut KL.]]=""),"0:0",Table1[[#This Row],[Slut KL.]]-Table1[[#This Row],[Start KL]]+(Table1[[#This Row],[Start KL]]>D17)) -> 06:00:00 | L17: =IF(OR(Table1[[#This Row],[Start KL]]="",Table1[[#This Row],[Slut KL.]]=""),"",IF(SUM(F17:K17)>24,"Du har indtastet over 24 timer.",Table1[[#This Row],[ArbejdsTid]])) -> 0.25
A18: =PROPER(TEXT(WEEKDAY(Table1[[#This Row],[Dato]],1),"DDDD")) -> Lørdag | B18: =IF($L$8="","",$L$8+5) -> 2019-11-09 | E18: =IF(OR(Table1[[#This Row],[Start KL]]="",Table1[[#This Row],[Slut KL.]]=""),"0:0",Table1[[#This Row],[Slut KL.]]-Table1[[#This Row],[Start KL]]+(Table1[[#This Row],[Start KL]]>D18)) -> 0:0 | L18: =IF(OR(Table1[[#This Row],[Start KL]]="",Table1[[#This Row],[Slut KL.]]=""),"",IF(SUM(F18:K18)>24,"Du har indtastet over 24 timer.",Table1[[#This Row],[ArbejdsTid]])) -> 
A19: =PROPER(TEXT(WEEKDAY(Table1[[#This Row],[Dato]],1),"DDDD")) -> Søndag | B19: =IF($L$8="","",$L$8+6) -> 2019-11-10 | E19: =IF(OR(Table1[[#This Row],[Start KL]]="",Table1[[#This Row],[Slut KL.]]=""),"0:0",Table1[[#This Row],[Slut KL.]]-Table1[[#This Row],[Start KL]]+(Table1[[#This Row],[Start KL]]>D19)) -> 0:0 | L19: =IF(OR(Table1[[#This Row],[Start KL]]="",Table1[[#This Row],[Slut KL.]]=""),"",IF(SUM(F19:K19)>24,"Du har indtastet over 24 timer.",Table1[[#This Row],[ArbejdsTid]])) -> 
A20: Timer total (TT:MM) | E20: =SUM(E13:E19) -> 1.9125 | F20: 1.541666667 | G20: =IF(SUM(E14:E20)<=T.!F10,"",IF(Table1[[#This Row],[ArbejdsTid]]>=T.!$F$10,T.!$C$1,IF(Table1[[#This Row],[ArbejdsTid]]>T.!$F$9,Table1[[#This Row],[ArbejdsTid]]-T.!$F$9,""))) -> 0.2083333333 | H20: =IF(Table1[[#This Row],[ArbejdsTid]]>T.!F10,Timesedel!E20-T.!F10,"") -> 0.1625
A23: Dag | B23: Dato | C23: Start KL | D23: Slut KL. | E23: Arbejdstid | F23: Norm | J23: Syg | K23: Ferie/fridag/sh | L23: I alt
A24: =PROPER(TEXT(WEEKDAY(Table1[[#This Row],[Dato]],1),"DDDD")) -> Mandag | B24: =IF($L$8="","",$L$8+7) -> 2019-11-11 | C24: 07:15:00 | D24: 15:45:00 | E24: =IF(OR(Table1[[#This Row],[Start KL]]="",Table1[[#This Row],[Slut KL.]]=""),"",Table1[[#This Row],[Slut KL.]]-Table1[[#This Row],[Start KL]]+(Table1[[#This Row],[Start KL]]>D24)) -> 08:30:00 | F24: =CHOOSE(WEEKDAY(Table1[[#This Row],[Dato]],2),T.!$F$2,T.!$F$3,T.!$F$4,T.!$F$5,T.!$F$6,T.!$F$7,T.!$F$8) -> 0.3083333333 | G24: =IF(Table1[[#This Row],[Start KL]]="","",IF(Table1[[#This Row],[ArbejdsTid]]>=T.!$B$1,T.!$C$1,Timesedel!E24-F24)) -> 0.04583333333 | H24: =IF(Table1[[#This Row],[ArbejdsTid]]<>"",IF(Table1[[#This Row],[ArbejdsTid]]>T.!$B$1,Table1[[#This Row],[ArbejdsTid]]-T.!$B$1,""),"") ->  | L24: =IF(OR(Table1[[#This Row],[Start KL]]="",Table1[[#This Row],[Slut KL.]]=""),"",IF(SUM(F24:K24)>24,"Du har indtastet over 24 timer.",Table1[[#This Row],[ArbejdsTid]])) -> 0.3541666667
A25: =PROPER(TEXT(WEEKDAY(Table1[[#This Row],[Dato]],1),"DDDD")) -> Tirsdag | B25: =IF($L$8="","",$L$8+8) -> 2019-11-12 | E25: =IF(OR(Table1[[#This Row],[Start KL]]="",Table1[[#This Row],[Slut KL.]]=""),"",Table1[[#This Row],[Slut KL.]]-Table1[[#This Row],[Start KL]]+(Table1[[#This Row],[Start KL]]>D25)) ->  | F25: =CHOOSE(WEEKDAY(Table1[[#This Row],[Dato]],2),T.!$F$2,T.!$F$3,T.!$F$4,T.!$F$5,T.!$F$6,T.!$F$7,T.!$F$8) -> 0.3083333333 | G25: =IF(Table1[[#This Row],[Start KL]]="","",IF(Table1[[#This Row],[ArbejdsTid]]>=T.!$B$1,T.!$C$1,Timesedel!E25-F25)) ->  | H25: =IF(Table1[[#This Row],[ArbejdsTid]]<>"",IF(Table1[[#This Row],[ArbejdsTid]]>T.!$B$1,Table1[[#This Row],[ArbejdsTid]]-T.!$B$1,""),"") ->  | L25: =IF(OR(Table1[[#This Row],[Start KL]]="",Table1[[#This Row],[Slut KL.]]=""),"",IF(SUM(F25:K25)>24,"Du har indtastet over 24 timer.",Table1[[#This Row],[ArbejdsTid]])) -> 
A26: =PROPER(TEXT(WEEKDAY(Table1[[#This Row],[Dato]],1),"DDDD")) -> Onsdag | B26: =IF($L$8="","",$L$8+9) -> 2019-11-13 | E26: =IF(OR(Table1[[#This Row],[Start KL]]="",Table1[[#This Row],[Slut KL.]]=""),"",Table1[[#This Row],[Slut KL.]]-Table1[[#This Row],[Start KL]]+(Table1[[#This Row],[Start KL]]>D26)) ->  | F26: =CHOOSE(WEEKDAY(Table1[[#This Row],[Dato]],2),T.!$F$2,T.!$F$3,T.!$F$4,T.!$F$5,T.!$F$6,T.!$F$7,T.!$F$8) -> 0.3083333333 | G26: =IF(Table1[[#This Row],[Start KL]]="","",IF(Table1[[#This Row],[ArbejdsTid]]>=T.!$B$1,T.!$C$1,Timesedel!E26-F26)) ->  | H26: =IF(Table1[[#This Row],[ArbejdsTid]]<>"",IF(Table1[[#This Row],[ArbejdsTid]]>T.!$B$1,Table1[[#This Row],[ArbejdsTid]]-T.!$B$1,""),"") ->  | L26: =IF(OR(Table1[[#This Row],[Start KL]]="",Table1[[#This Row],[Slut KL.]]=""),"",IF(SUM(F26:K26)>24,"Du har indtastet over 24 timer.",Table1[[#This Row],[ArbejdsTid]])) -> 
A27: =PROPER(TEXT(WEEKDAY(Table1[[#This Row],[Dato]],1),"DDDD")) -> Torsdag | B27: =IF($L$8="","",$L$8+10) -> 2019-11-14 | E27: =IF(OR(Table1[[#This Row],[Start KL]]="",Table1[[#This Row],[Slut KL.]]=""),"",Table1[[#This Row],[Slut KL.]]-Table1[[#This Row],[Start KL]]+(Table1[[#This Row],[Start KL]]>D27)) ->  | F27: =CHOOSE(WEEKDAY(Table1[[#This Row],[Dato]],2),T.!$F$2,T.!$F$3,T.!$F$4,T.!$F$5,T.!$F$6,T.!$F$7,T.!$F$8) -> 0.3083333333 | G27: =IF(Table1[[#This Row],[Start KL]]="","",IF(Table1[[#This Row],[ArbejdsTid]]>=T.!$B$1,T.!$C$1,Timesedel!E27-F27)) ->  | H27: =IF(Table1[[#This Row],[ArbejdsTid]]<>"",IF(Table1[[#This Row],[ArbejdsTid]]>T.!$B$1,Table1[[#This Row],[ArbejdsTid]]-T.!$B$1,""),"") ->  | L27: =IF(OR(Table1[[#This Row],[Start KL]]="",Table1[[#This Row],[Slut KL.]]=""),"",IF(SUM(F27:K27)>24,"Du har indtastet over 24 timer.",Table1[[#This Row],[ArbejdsTid]])) -> 
A28: =PROPER(TEXT(WEEKDAY(Table1[[#This Row],[Dato]],1),"DDDD")) -> Fredag | B28: =IF($L$8="","",$L$8+11) -> 2019-11-15 | E28: =IF(OR(Table1[[#This Row],[Start KL]]="",Table1[[#This Row],[Slut KL.]]=""),"",Table1[[#This Row],[Slut KL.]]-Table1[[#This Row],[Start KL]]+(Table1[[#This Row],[Start KL]]>D28)) ->  | F28: =CHOOSE(WEEKDAY(Table1[[#This Row],[Dato]],2),T.!$F$2,T.!$F$3,T.!$F$4,T.!$F$5,T.!$F$6,T.!$F$7,T.!$F$8) -> 0.3083333333 | G28: =IF(Table1[[#This Row],[Start KL]]="","",IF(Table1[[#This Row],[ArbejdsTid]]>=T.!$B$1,T.!$C$1,Timesedel!E28-F28)) ->  | H28: =IF(Table1[[#This Row],[ArbejdsTid]]<>"",IF(Table1[[#This Row],[ArbejdsTid]]>T.!$B$1,Table1[[#This Row],[ArbejdsTid]]-T.!$B$1,""),"") ->  | K28: , | L28: =IF(OR(Table1[[#This Row],[Start KL]]="",Table1[[#This Row],[Slut KL.]]=""),"",IF(SUM(F28:K28)>24,"Du har indtastet over 24 timer.",Table1[[#This Row],[ArbejdsTid]])) -> 
A29: =PROPER(TEXT(WEEKDAY(Table1[[#This Row],[Dato]],1),"DDDD")) -> Lørdag | B29: =IF($L$8="","",$L$8+12) -> 2019-11-16 | E29: =IF(OR(Table1[[#This Row],[Start KL]]="",Table1[[#This Row],[Slut KL.]]=""),"",Table1[[#This Row],[Slut KL.]]-Table1[[#This Row],[Start KL]]+(Table1[[#This Row],[Start KL]]>D29)) ->  | F29: =CHOOSE(WEEKDAY(Table1[[#This Row],[Dato]],2),T.!$F$2,T.!$F$3,T.!$F$4,T.!$F$5,T.!$F$6,T.!$F$7,T.!$F$8) -> 0 | G29: =IF(Table1[[#This Row],[Start KL]]="","",IF(Table1[[#This Row],[ArbejdsTid]]>=T.!$B$1,T.!$C$1,Timesedel!E29-F29)) ->  | H29: =IF(Table1[[#This Row],[ArbejdsTid]]<>"",IF(Table1[[#This Row],[ArbejdsTid]]>T.!$B$1,Table1[[#This Row],[ArbejdsTid]]-T.!$B$1,""),"") ->  | L29: =IF(OR(Table1[[#This Row],[Start KL]]="",Table1[[#This Row],[Slut KL.]]=""),"",IF(SUM(F29:K29)>24,"Du har indtastet over 24 timer.",Table1[[#This Row],[ArbejdsTid]])) -> 
A30: =PROPER(TEXT(WEEKDAY(Table1[[#This Row],[Dato]],1),"DDDD")) -> Søndag | B30: =IF($L$8="","",$L$8+13) -> 2019-11-17 | E30: =IF(OR(Table1[[#This Row],[Start KL]]="",Table1[[#This Row],[Slut KL.]]=""),"",Table1[[#This Row],[Slut KL.]]-Table1[[#This Row],[Start KL]]+(Table1[[#This Row],[Start KL]]>D30)) ->  | F30: =CHOOSE(WEEKDAY(Table1[[#This Row],[Dato]],2),T.!$F$2,T.!$F$3,T.!$F$4,T.!$F$5,T.!$F$6,T.!$F$7,T.!$F$8) -> 0 | G30: =IF(Table1[[#This Row],[Start KL]]="","",IF(Table1[[#This Row],[ArbejdsTid]]>=T.!$B$1,T.!$C$1,Timesedel!E30-F30)) ->  | H30: =IF(Table1[[#This Row],[ArbejdsTid]]<>"",IF(Table1[[#This Row],[ArbejdsTid]]>T.!$B$1,Table1[[#This Row],[ArbejdsTid]]-T.!$B$1,""),"") ->  | L30: =IF(OR(Table1[[#This Row],[Start KL]]="",Table1[[#This Row],[Slut KL.]]=""),"",IF(SUM(F30:K30)>24,"Du har indtastet over 24 timer.",Table1[[#This Row],[ArbejdsTid]])) -> 
A31: Timer total (TT:MM) | B31: I alt | E31: =SUM(E24:E30) -> 0.3541666667 | G31: =SUBTOTAL(109,Table1[fra 1 til 5 overtime]) -> 0.2541666667 | H31: =SUBTOTAL(109,Table1[[Fra 6 overtime ]]) -> 0.1625 | J31: =SUBTOTAL(109,Table1[Syg]) -> 0 | K31: =SUBTOTAL(109,Table1[Ferie/fridag/sh]) -> 0 | L31: =SUBTOTAL(109,Table1[I alt]) -> 2.266666667
A32: Timer total (1/100) | E32: =Table1[[#Totals],[ArbejdsTid]]*24 -> 8.5 | G32: =Table1[[#Totals],[fra 1 til 5 overtime]]*24 -> 6.1 | H32: =Table1[[#Totals],[Fra 6 overtime ]]*24 -> 3.9 | J32: =Table1[[#Totals],[Syg]]*24 -> 0 | K32: =Table1[[#Totals],[Ferie/fridag/sh]]*24 -> 0 | L32: =Table1[[#Totals],[I alt]]*24 -> 54.4
B33: Timesats | E33: =T.!A2 -> 155.25 | G33: =T.!A3 -> 37.55 | H33: =T.!A4 -> 92.23 | J33: 155.25 | K33: 155.25
B34: Løn i alt | E34: =E32*E33 -> 1319.625 | G34: =G32*G33 -> 229.055 | H34: 359.697 | J34: 0 | K34: 0 | L34: =SUM(E34:K34) -> 1908.377

Sheet T.
A1: Timeløn | B1: 12:24:00 | C1: 05:00:00 | E1: Norm
A2: 155.25 | C2: 06:00:00 | E2: Mandag | F2: 0.3083333333
A3: =B3-A2 -> 37.55 | B3: 192.8 | C3: 18:00:00 | E3: Tirsdag | F3: 0.3083333333
A4: =B4-A2 -> 92.23 | B4: 247.48 | C4: 21:00:00 | E4: Onsdag | F4: 0.3083333333
E5: Torsdag | F5: 0.3083333333
E6: Fredag | F6: 0.3083333333
E7: Lørdag | F7: 0
E8: Søndag | F8: 0
F9: 1.541666667
F10: 1.75

Sheet Lønsedel (hidden)
A1: Lønseddel
A3: Jan Madsen | C3: CPR-nr. | D3: 010856-0495
A4: Fyrvej 3 | C4: Trækprocent: | D4: 38
A5: 4600 Køge | C5: 14 dages | D5: 2482
C6: SE-nr.: | D6: 82 36 37 18
C7: Firma | D7: BTK
D8: Heeringvej 25
D9: 4690 Haslev
A12: Lønperiode: | B12: 17.03.2014 – 30.03.2014
A14: Gage:
A15: Ferieberettiget indkomst | E15: 12470
A16: Atp: | E16: 47.4
A17: AM-pension medarbejder | B17: 4 % af | C17: =+E15 -> 12470 | E17: =+(C17/100)*4 -> 498.8
A18: Arbejdsmarkedsbidrag: | B18: 8 % af | C18: =+E15-E16-E17 -> 11923.8 | E18: =ROUND(+(C18/100)*8,0) -> 954
A19: Nettoløn: | E19: =+E15-E16-E18-E17 -> 10969.8
A21: A-skattepligtig indkomst | D21: =+E19 -> 10969.8
A22: 14 dags fradrag | D22: =+D5 -> 2482
A23: Skattegrundlag: | D23: =+D21-D22 -> 8487.8
A25: Skat: | B25: 38 % af | C25: =+D23 -> 8487.8 | E25: =ROUND(+(C25/100)*D4,0) -> 3225
A27: Løn til udbetaling: | E27: =+E19-E25 -> 7744.8
A29: Saldi: | C29: Perioden | E29: År til dato
A30: AM indkomst | C30: =+C18 -> 11923.8 | E30: =SUM(C30) -> 11923.8
A31: A-Indkomst | C31: =+D21 -> 10969.8 | E31: 10969.8
A32: A Skat | C32: =+E25 -> 3225 | E32: 3225
A33: AM bidrag | C33: =+E18 -> 954 | E33: 954
A34: ATP bidrag medarbejder | C34: =+E16 -> 47.4 | E34: 47.4
A35: ATP bidrag arbejdsgiver | C35: 180 | E35: 180
A36: Pension medarbejder | B36: 0.04 | C36: =+E17 -> 498.8 | E36: 498.8
A37: Pension arbejdsgiver | B37: 0.08 | C37: =+(C17/100)*6 -> 748.2 | E37: 748.2
A38: Ferieberettiget indkomst | C38: =SUM(C15:C15) -> 0 | E38: 0
A39: Rest ferie

Sheet Ark1
A1: BTK Transport
A2: Herringvej 25 4690 Haslev | O2: Timeseddel for 2 uger
A7: Medarbejder: | J7: Telefonnummer, medarbejder:
A8: E-mail, medarbejder: | J8: Startdato: | P8: 2018-12-31
A9: Leder: | J9: Slutdato: | P9: =IF($P$8="","",$P$8+13) -> 2019-01-13
A12: Dag | B12: Dato | D12: Start KL | E12: Slut KL. | F12: ArbejdsTid | G12: Norm | H12: fra 1 til 5 overtime | I12: Fra 6 overtime | J12: 05 - 06 | K12: 18 - 21 | L12: 21 - 05 | M12: Søn- og helligdage | N12: Syg | O12: Ferie/fridag/sh | P12: I alt
A13: =PROPER(TEXT(WEEKDAY(B13,1),"DDDD")) -> Mandag | B13: =P8 -> 2018-12-31 | C13: =HelligdagsNavn(B13,0,0) ->  | D13: 08:00:00 | E13: 16:30:00 | F13: =IF(OR(D13="",E13=""),"0:0",E13-D13+(D13>E13)) -> 0.3541666667 | J13: =ColTime(T.!$C$1,T.!$C$2,D13,E13) -> 0 | K13: =ColTime(T.!$C$3,T.!$C$4,'Ark1'!D13,'Ark1'!E13) -> 0 | L13: =ColTime(T.!$C$4,T.!$C$1,'Ark1'!D13,'Ark1'!E13) -> 0 | M13: =IF(D13="","",IF(OR(WEEKDAY(B13,2)=7,C13<>""),E13-D13,"")) ->  | P13: =F13 -> 0.3541666667
A14: =PROPER(TEXT(WEEKDAY(B14,1),"DDDD")) -> Tirsdag | B14: =B13+1 -> 2019-01-01 | C14: =HelligdagsNavn(B14,0,0) -> Nytårsdag | D14: 07:00:00 | E14: 13:00:00 | F14: =IF(OR(D14="",E14=""),"0:0",E14-D14+(D14>E14)) -> 0.25 | J14: =ColTime(T.!$C$1,T.!$C$2,D14,E14) -> 0 | K14: =ColTime(T.!$C$3,T.!$C$4,'Ark1'!D14,'Ark1'!E14) -> 0 | L14: =ColTime(T.!$C$4,T.!$C$1,'Ark1'!D14,'Ark1'!E14) -> 0 | M14: 0.25 | P14: =F14 -> 0.25
A15: Onsdag | B15: =B14+1 -> 2019-01-02 | D15: 07:00:00 | E15: 15:00:00 | F15: =IF(OR(D15="",E15=""),"0:0",E15-D15+(D15>E15)) -> 0.3333333333 | J15: =ColTime(T.!$C$1,T.!$C$2,D15,E15) -> 0 | K15: =ColTime(T.!$C$3,T.!$C$4,'Ark1'!D15,'Ark1'!E15) -> 0 | L15: =ColTime(T.!$C$4,T.!$C$1,'Ark1'!D15,'Ark1'!E15) -> 0 | P15: 0.3333333333
A16: Torsdag | B16: 2019-01-03 | D16: 08:00:00 | E16: 22:00:00 | F16: =IF(OR(D16="",E16=""),"0:0",E16-D16+(D16>E16)) -> 0.5833333333 | J16: =ColTime(T.!$C$1,T.!$C$2,D16,E16) -> 0 | K16: =ColTime(T.!$C$3,T.!$C$4,'Ark1'!D16,'Ark1'!E16) -> 0.125 | L16: =ColTime(T.!$C$4,T.!$C$1,'Ark1'!D16,'Ark1'!E16) -> 0.04166666667 | P16: 0.5833333333
A17: Fredag | B17: 2019-01-04 | D17: 05:00:00 | E17: 14:30:00 | F17: 0.3958333333 | J17: =ColTime(T.!$C$1,T.!$C$2,D17,E17) -> 0.04166666667 | K17: =ColTime(T.!$C$3,T.!$C$4,'Ark1'!D17,'Ark1'!E17) -> 0 | L17: =ColTime(T.!$C$4,T.!$C$1,'Ark1'!D17,'Ark1'!E17) -> 0 | P17: 0.3958333333
A18: Lørdag | B18: 2019-01-05 | F18: =IF(OR(D18="",E18=""),"00:00",E18-D18+(D18>E18)) -> 00:00 | J18: =ColTime(T.!$C$1,T.!$C$2,D18,E18) -> 0 | K18: =ColTime(T.!$C$3,T.!$C$4,'Ark1'!D18,'Ark1'!E18) -> 0 | L18: =ColTime(T.!$C$4,T.!$C$1,'Ark1'!D18,'Ark1'!E18) -> 0 | P18: 00:00
A19: Søndag | B19: 2019-01-06 | F19: =IF(OR(D19="",E19=""),"00:00",E19-D19+(D19>E19)) -> 00:00 | K19: =ColTime(T.!$C$3,T.!$C$4,'Ark1'!D19,'Ark1'!E19) -> 0 | L19: =ColTime(T.!$C$4,T.!$C$1,'Ark1'!D19,'Ark1'!E19) -> 0 | M19: =IF(D19="","",IF(OR(WEEKDAY(B19,2)=7,C19<>""),E19-D19,"")) ->  | P19: 00:00
A20: Timer total (TT:MM) | F20: =SUM(F13:F19) -> 1.916666667 | G20: 1.541666667 | H20: =IF(SUM(F14:F20)<=T.!$F$8,"",IF(Table1[[#This Row],[ArbejdsTid]]>=T.!$F$10,T.!$C$1,IF(Table1[[#This Row],[ArbejdsTid]]>T.!$F$9,Table1[[#This Row],[ArbejdsTid]]-T.!$F$9,""))) -> 0.2083333333 | I20: =IF(F20>T.!$F$10,F20-T.!$F$10,"0:0") -> 0.1666666667 | J20: =SUM(J13:J19) -> 0.04166666667 | K20: =SUM(K13:K19) -> 0.125 | L20: 0.04166666667 | M20: 0.25 | P20: =SUM(P13:P19) -> 1.916666667
A22: =PROPER(TEXT(WEEKDAY(B22,1),"DDDD")) -> Mandag | B22: =B19+1 -> 2019-01-07 | C22: =HelligdagsNavn(B22,0,0) ->  | D22: 07:00:00 | E22: 15:00:00 | F22: =IF(OR(D22="",E22=""),"0:0",E22-D22+(D22>E22)) -> 0.3333333333 | J22: =ColTime(T.!$C$1,T.!$C$2,D22,E22) -> 0 | K22: =ColTime(T.!$C$3,T.!$C$4,'Ark1'!D22,'Ark1'!E22) -> 0 | L22: =ColTime(T.!$C$4,T.!$C$1,'Ark1'!D22,'Ark1'!E22) -> 0 | M22: =IF(D22="","",IF(OR(WEEKDAY(B22,2)=7,C22<>""),E22-D22,"")) ->  | P22: =F22 -> 0.3333333333
A23: =PROPER(TEXT(WEEKDAY(B23,1),"DDDD")) -> Tirsdag | B23: =B22+1 -> 2019-01-08 | D23: 06:00:00 | E23: 18:30:00 | F23: =IF(OR(D23="",E23=""),"0:0",E23-D23+(D23>E23)) -> 0.5208333333 | J23: =ColTime(T.!$C$1,T.!$C$2,D23,E23) -> 0 | K23: =ColTime(T.!$C$3,T.!$C$4,'Ark1'!D23,'Ark1'!E23) -> 0.02083333333 | L23: =ColTime(T.!$C$4,T.!$C$1,'Ark1'!D23,'Ark1'!E23) -> 0 | P23: =F23 -> 0.5208333333
A24: Onsdag | B24: =B23+1 -> 2019-01-09 | D24: 06:00:00 | E24: 13:24:00 | F24: =IF(OR(D24="",E24=""),"0:0",E24-D24+(D24>E24)) -> 0.3083333333 | J24: =ColTime(T.!$C$1,T.!$C$2,D24,E24) -> 0 | K24: =ColTime(T.!$C$3,T.!$C$4,'Ark1'!D24,'Ark1'!E24) -> 0 | L24: =ColTime(T.!$C$4,T.!$C$1,'Ark1'!D24,'Ark1'!E24) -> 0 | P24: 0.3083333333
A25: Torsdag | B25: 2019-01-10 | D25: 06:00:00 | E25: 18:00:00 | F25: 0.5 | J25: =ColTime(T.!$C$1,T.!$C$2,D25,E25) -> 0 | K25: =ColTime(T.!$C$3,T.!$C$4,'Ark1'!D25,'Ark1'!E25) -> 0 | L25: =ColTime(T.!$C$4,T.!$C$1,'Ark1'!D25,'Ark1'!E25) -> 0 | P25: 0.5
A26: Fredag | B26: 2019-01-11 | D26: 06:00:00 | E26: 12:00:00 | F26: =IF(OR(D26="",E26=""),"00:00",E26-D26+(D26>E26)) -> 0.25 | J26: =ColTime(T.!$C$1,T.!$C$2,D26,E26) -> 0 | K26: =ColTime(T.!$C$3,T.!$C$4,'Ark1'!D26,'Ark1'!E26) -> 0 | L26: =ColTime(T.!$C$4,T.!$C$1,'Ark1'!D26,'Ark1'!E26) -> 0 | P26: 0.25
A27: Lørdag | B27: 2019-01-12 | F27: =IF(OR(D27="",E27=""),"00:00",E27-D27+(D27>E27)) -> 00:00 | J27: =ColTime(T.!$C$1,T.!$C$2,D27,E27) -> 0 | K27: =ColTime(T.!$C$3,T.!$C$4,'Ark1'!D27,'Ark1'!E27) -> 0 | L27: =ColTime(T.!$C$4,T.!$C$1,'Ark1'!D27,'Ark1'!E27) -> 0 | P27: 00:00
A28: Søndag | B28: 2019-01-13 | F28: =IF(OR(D28="",E28=""),"00:00",E28-D28+(D28>E28)) -> 00:00 | J28: =ColTime(T.!$C$1,T.!$C$2,D28,E28) -> 0 | K28: =ColTime(T.!$C$3,T.!$C$4,'Ark1'!D28,'Ark1'!E28) -> 0 | L28: =ColTime(T.!$C$4,T.!$C$1,'Ark1'!D28,'Ark1'!E28) -> 0 | P28: 00:00
A29: Timer total (TT:MM) | F29: =SUM(F22:F28) -> 1.9125 | G29: =T.!F9 -> 1.541666667 | H29: =IF(SUM(F23:F29)<=T.!F8,"",IF(F29>=T.!$F$10,T.!$C$1,IF(F29>T.!$F$9,F29-T.!$F$9,""))) -> 0.2083333333 | I29: =IF(F29>T.!$F$10,F29-T.!$F$10,"0") -> 0.1625 | J29: =SUM(J22:J28) -> 0 | K29: =SUM(K22:K28) -> 0.02083333333 | L29: 0 | M29: 0 | P29: =SUM(P22:P28) -> 1.9125
A31: Timer total (TT:MM) | F31: =F20+F29 -> 3.829166667 | H31: =H20+H29 -> 0.4166666667 | I31: =I20+I29 -> 0.3291666667 | J31: 0.04166666667 | K31: 0.1458333333 | L31: 0.04166666667 | M31: 0.25 | N31: 0 | O31: 0
A32: Timer total (1/100) | F32: =F31*24 -> 91.9 | H32: =H31*24 -> 10 | I32: =I31*24 -> 7.9 | J32: =J31*24 -> 1 | K32: 3.5 | L32: 1 | M32: 6 | N32: =N31*24 -> 0 | O32: =O31*24 -> 0
B33: Timesats | F33: =T.!A2 -> 155.25 | H33: =T.!A3 -> 37.55 | I33: =T.!A4 -> 92.23 | J33: =T.!A3 -> 37.55 | K33: =T.!A3 -> 37.55 | L33: =T.!A4 -> 92.23 | M33: =T.!A4 -> 92.23 | N33: 155.25 | O33: 155.25
B34: Løn i alt | F34: =F32*F33 -> 14267.475 | H34: =H32*H33 -> 375.5 | I34: 728.617 | J34: 37.55 | K34: 131.425 | L34: 92.23 | M34: 553.38 | N34: 0 | O34: 0 | P34: =SUM(F34:O34) -> 16186.177
